bitfinex/quotes_SOLUSD_20241118
["timestamp","ask_amount","ask_price","bid_price","bid_amount"]
[1731902293918,15.50372074,243.88,243.79,15.50372074]
[1731902294412,15.50372074,243.88,243.69,34.8802]
[1731902294413,15.50372074,243.86,243.77,15.50372074]
[1731902295395,19.19442074,243.86,243.77,15.50372074]
[1731902297406,19.19402074,243.88,243.79,15.50372074]
[1731902298114,15.50372074,243.86,243.77,15.50372074]
[1731902298905,15.50372074,243.86,243.75,10.2563]
[1731902298906,15.50372074,243.84,243.75,10.2563]
[1731902299098,0.56044112,243.9,243.8,15.50372074]
[1731902299099,16.06416186,243.9,243.8,15.50372074]
[1731902299296,19.75426186,243.9,243.8,15.50372074]
[1731902300102,16.06416186,243.9,243.8,15.50372074]
[1731902300427,0.56044112,243.9,243.84,15.50372074]
[1731902301119,0.56044112,243.9,243.86,15.50372074]
[1731902301331,0.1,243.99,243.86,15.50372074]
[1731902301332,0.1,244.2,244.07,8.4]
[1731902301497,15.50372074,244.08,243.95,15.50372074]
[1731902301700,15.50372074,244.03,243.93,15.50372074]
[1731902301919,22.09669595,244.1,243.91,0.1]
[1731902302132,22.09669595,244.1,244.03,15.50372074]
[1731902302421,22.09669595,244.1,244.01,15.50372074]
[1731902302813,22.09669595,244.1,244.03,15.50372074]
[1731902303023,22.09669595,244.1,244.02,10.245]
[1731902303528,22.09669595,244.1,244.03,15.50372074]
[1731902303821,22.09669595,244.1,244.02,10.245]
[1731902304622,22.09669595,244.1,243.99,15.50372074]
[1731902305124,15.50372074,244.09,243.99,15.50372074]
[1731902305505,22.09669595,244.1,243.99,15.50372074]
[1731902305704,15.50372074,244.08,243.99,15.50372074]
[1731902305909,15.50372074,244.0,243.91,14.3494]
[1731902306326,15.50372074,244.02,243.91,25.75332074]
[1731902306715,15.50372074,244.02,243.91,29.85312074]
[1731902307219,15.50372074,244.02,243.91,14.3494]
[1731902307531,15.50372074,244.02,243.92,15.50372074]
[1731902307915,15.50372074,244.02,243.91,29.85312074]
[1731902308120,15.50372074,244.0,243.91,29.85312074]
[1731902308319,15.50372074,244.0,243.91,14.3494]
[1731902309423,15.50372074,244.02,243.91,29.85312074]
[1731902309824,21.97482074,244.06,243.95,15.50372074]
[1731902310022,6.4711,244.06,243.97,15.50372074]
[1731902310426,21.97482074,244.06,243.97,15.50372074]
[1731902310828,21.97482074,244.06,243.95,15.50372074]
[1731902311058,21.97482074,244.06,243.97,15.50372074]
[1731902311250,21.97482074,244.06,243.97,19.60242074]
[1731902311460,21.97482074,244.06,243.97,4.0987]
[1731902311753,21.97482074,244.06,243.98,15.50372074]
[1731902312132,25.66242074,244.06,243.97,14.3458]
[1731902312839,15.50372074,244.03,243.94,15.50372074]
[1731902313455,15.50372074,244.03,243.93,15.50372074]
[1731902313845,15.50372074,244.03,243.91,25.75312074]
[1731902313846,15.50372074,243.99,243.91,25.75312074]
[1731902314053,15.50372074,244.01,243.91,25.75312074]
[1731902315361,15.50372074,244.05,243.95,15.50372074]
[1731902315533,15.50372074,244.05,243.91,10.2494]
[1731902315740,6.4711,244.06,243.97,15.50372074]
[1731902316558,15.50372074,244.05,243.91,10.2494]
[1731902316739,15.50372074,244.05,243.97,15.50372074]
[1731902316940,15.50372074,244.05,243.91,10.2494]
[1731902317136,0.71248936,244.14,243.91,10.2494]
[1731902317137,15.50372074,244.09,244.0,15.50372074]
[1731902317345,15.50372074,244.11,244.02,15.50372074]
[1731902318161,15.50372074,244.13,244.04,15.50372074]
[1731902318366,15.50372074,244.13,244.02,15.50372074]
[1731902318739,6.5607,244.16,244.02,15.50372074]
[1731902319064,15.50372074,244.09,243.96,34.8416]
[1731902319364,6.5607,244.16,244.06,15.50372074]
[1731902319577,15.50372074,244.12,244.06,4.0972]
[1731902319941,37.60041669,244.1,244.04,10.2438]
[1731902320368,37.60041669,244.1,244.04,14.3414]
[1731902320563,22.09669595,244.1,244.04,14.3414]
[1731902321152,15.50372074,244.08,244.04,10.2438]
[1731902321348,37.60041669,244.1,244.0,15.50372074]
[1731902321868,22.09669595,244.1,244.02,15.50372074]
[1731902323562,22.09669595,244.1,244.03,14.3424]
[1731902323767,37.60041669,244.1,243.94,0.1]
[1731902324062,37.60041669,244.1,244.0,15.50372074]
[1731902324271,22.09669595,244.1,244.02,15.50372074]
[1731902325469,22.09669595,244.1,244.06,15.50372074]
[1731902326264,22.09669595,244.1,244.05,9.6685434]
[1731902326768,22.09669595,244.1,244.02,15.603721]
[1731902326769,22.09669595,244.1,244.07,9.6685434]
[1731902327347,22.09669595,244.1,244.05,9.6685434]
[1731902327577,22.09669595,244.1,244.03,9.6685434]
[1731902327871,22.09669595,244.1,244.06,9.6685434]
[1731902328468,22.09669595,244.1,244.01,15.603721]
[1731902328676,22.09669595,244.1,244.06,9.6685434]
[1731902329573,6.5607,244.08,244.01,15.603721]
[1731902329760,6.5607,244.08,243.97,10.2468]
[1731902329761,9.6685434,244.03,243.97,10.2468]
[1731902330164,9.6685434,244.05,243.97,10.2468]
[1731902331678,13.3563434,244.05,243.96,9.6685434]
[1731902331853,9.6685434,244.03,243.93,9.6685434]
[1731902332249,19.17090649,244.05,243.95,15.48310649]
[1731902332459,22.09669595,244.1,244.05,0.1]
[1731902332674,22.09669595,244.1,244.09,15.48310649]
[1731902333273,22.09669595,244.1,244.07,15.48310649]
[1731902334190,22.09669595,244.1,244.05,15.48310649]
[1731902335788,22.09669595,244.1,244.03,19.58080649]
[1731902336094,15.48310649,244.23,244.08,15.60859649]
[1731902336269,3.6841,244.29,244.11,15.48310649]
[1731902336270,15.48310649,244.22,244.11,15.48310649]
[1731902336588,15.48310649,244.2,244.09,15.48310649]
[1731902336796,15.48310649,244.22,244.11,15.48310649]
[1731902337101,15.48310649,244.16,244.05,30.0]
[1731902337272,15.48310649,244.16,244.05,45.48310649]
[1731902337469,7.9876749,244.3,244.07,15.48310649]
[1731902337779,15.48310649,244.21,244.11,15.48310649]
[1731902338494,3.6842,244.29,244.12,0.12549]
[1731902338495,15.48310649,244.23,244.12,0.12549]
[1731902338793,15.48310649,244.21,244.13,4.0961]
[1731902339086,15.48310649,244.21,244.11,15.48310649]
[1731902339290,15.48310649,244.21,244.11,19.57950649]
[1731902339890,15.48310649,244.2,244.11,25.72430649]
[1731902340265,15.48310649,244.2,244.11,29.82080649]
[1731902340466,15.48310649,244.2,244.11,14.3377]
[1731902340692,15.48310649,244.18,244.07,15.48310649]
[1731902340896,15.48310649,244.16,244.07,15.48310649]
[1731902341294,15.48310649,244.18,244.07,15.48310649]
[1731902341782,15.48310649,244.18,244.07,19.58010649]
[1731902342181,15.48310649,244.16,244.05,19.58050649]
[1731902342385,15.48310649,244.16,244.06,0.12549]
[1731902342884,15.48310649,244.16,244.05,29.82430649]
[1731902343203,27.6295,244.31,244.05,29.82430649]
[1731902343204,3.6839,244.3,244.12,0.12549]
[1731902343391,15.48310649,244.23,244.12,0.12549]
[1731902343882,15.48310649,244.23,244.12,4.22169]
[1731902344088,15.48310649,244.21,244.1,4.0966]
[1731902344295,15.48310649,244.19,244.1,14.3383]
[1731902344519,15.48310649,244.19,244.07,15.48310649]
[1731902344806,3.6851,244.23,244.0,4.0983]
[1731902344807,15.48310649,244.17,244.05,15.48310649]
[1731902345315,3.6851,244.23,244.11,15.48310649]
[1731902345478,3.6838,244.31,244.11,15.48310649]
[1731902345678,15.48310649,244.23,244.11,15.48310649]
[1731902345985,15.48310649,244.23,244.09,25.72510649]
[1731902345986,15.48310649,244.21,244.09,25.72510649]
[1731902346193,15.48310649,244.24,244.14,15.48310649]
[1731902346698,15.48310649,244.24,244.11,0.12549]
[1731902346699,15.48310649,244.22,244.1,15.48310649]
[1731902346900,15.48310649,244.2,244.1,15.48310649]
[1731902347084,15.48310649,244.22,244.1,15.48310649]
[1731902347913,15.48310649,244.22,244.11,4.0965]
[1731902347914,19.16830649,244.22,244.11,4.0965]
[1731902348396,19.16830649,244.22,244.11,14.3377]
[1731902348997,3.6852,244.22,244.12,15.48310649]
[1731902349608,15.48310649,244.18,244.08,15.48310649]
[1731902349905,15.48310649,244.2,244.08,19.57990649]
[1731902350105,30.60860649,244.32,244.08,19.57990649]
[1731902350106,21.4443,244.39,244.19,15.48310649]
[1731902350411,21.4443,244.39,244.11,6.6331]
[1731902350412,15.48310649,244.29,244.17,15.48310649]
[1731902350595,15.48310649,244.27,244.15,15.48310649]
[1731902351915,19.16760649,244.27,244.15,19.57870649]
[1731902352584,3.6845,244.27,244.15,19.57870649]
[1731902352989,15.48310649,244.26,244.15,4.57870649]
[1731902353217,15.48310649,244.26,244.16,15.48310649]
[1731902354196,3.6847,244.25,244.15,13.75646177]
[1731902355191,9.66086177,244.24,244.13,19.90096177]
[1731902355398,9.66086177,244.22,244.11,9.66086177]
[1731902355624,9.66086177,244.22,244.08,20.485]
[1731902355625,9.66086177,244.2,244.08,9.66086177]
[1731902356203,21.4443,244.24,244.08,9.66086177]
[1731902356204,9.66086177,244.18,244.08,9.66086177]
[1731902356704,3.685,244.23,244.08,13.75776177]
[1731902356905,9.66086177,244.18,244.08,9.66086177]
[1731902357105,9.66086177,244.18,244.06,9.66086177]
[1731902357609,3.785,244.23,244.06,9.66086177]
[1731902357808,9.66086177,244.18,244.06,9.66086177]
[1731902358012,9.66086177,244.16,244.06,9.66086177]
[1731902358415,9.66086177,244.16,244.07,4.0971]
[1731902358617,9.66086177,244.16,244.06,9.66086177]
[1731902358830,0.1,244.23,244.07,4.0971]
[1731902358831,13.34666177,244.18,244.07,4.0971]
[1731902359004,21.3443,244.24,244.08,9.66086177]
[1731902359327,9.66086177,244.2,244.08,9.66086177]
[1731902360408,3.6853,244.22,244.1,9.66086177]
[1731902360616,9.66086177,244.21,244.1,9.66086177]
[1731902361322,9.66086177,244.21,244.12,9.66086177]
[1731902361802,9.66086177,244.21,244.1,9.66086177]
[1731902362008,9.66086177,244.21,244.11,14.3393]
[1731902362209,9.66086177,244.19,244.1,9.66086177]
[1731902362529,3.6858,244.18,244.08,24.00016177]
[1731902362999,3.6858,244.18,244.08,14.3393]
[1731902363639,3.6858,244.18,244.08,10.2425]
[1731902364131,3.6858,244.18,244.09,9.66086177]
[1731902364827,9.66086177,244.14,244.04,16.377703]
[1731902365029,9.66086177,244.14,244.02,14.3425]
[1731902365229,9.66086177,244.14,244.04,9.66086177]
[1731902365420,3.6862,244.15,244.02,10.2446]
[1731902365624,3.6862,244.15,244.05,9.66086177]
[1731902366010,3.6862,244.15,244.02,14.3425]
[1731902366209,3.6862,244.15,244.07,9.66086177]
[1731902366914,3.6862,244.15,244.02,14.3425]
[1731902367135,3.6862,244.15,244.09,9.66086177]
[1731902367436,0.71084658,244.22,244.1,4.0966]
[1731902367437,3.6853,244.21,244.1,4.0966]
[1731902367732,9.66086177,244.2,244.09,9.66086177]
[1731902368528,9.66086177,244.2,244.01,4.22359]
[1731902368739,3.6856,244.19,244.09,9.66086177]
[1731902369510,9.66086177,244.22,244.11,9.66086177]
[1731902369710,3.6855,244.2,244.11,9.66086177]
[1731902369930,3.6847,244.25,244.15,9.66086177]
[1731902370236,9.66086177,244.23,244.13,9.66086177]
[1731902370437,13.34556177,244.25,244.13,9.66086177]
[1731902370940,9.66086177,244.19,244.07,4.0971]
[1731902371146,9.66086177,244.21,244.1,9.66086177]
[1731902372251,3.6855,244.2,244.1,9.66086177]
[1731902375234,13.34636177,244.2,244.1,9.66086177]
[1731902376151,3.6855,244.2,244.12,9.66086177]
[1731902377032,13.34636177,244.2,244.1,9.66086177]
[1731902377229,13.34636177,244.2,244.08,9.66086177]
[1731902378221,13.34636177,244.2,244.09,4.0968]
[1731902378425,13.34636177,244.2,244.08,9.66086177]
[1731902379351,3.6855,244.2,244.08,9.66086177]
[1731902379645,3.6855,244.2,244.07,14.34]
[1731902379646,6.6259,244.21,244.11,9.66086177]
[1731902379848,10.3113,244.21,244.11,9.66086177]
[1731902380350,10.3113,244.21,244.12,4.0963]
[1731902381356,6.6259,244.21,244.13,9.66086177]
[1731902381535,10.3113,244.21,244.13,9.66086177]
[1731902381941,10.3113,244.21,244.12,14.3371]
[1731902384229,6.6259,244.21,244.12,14.3371]
[1731902384442,13.34636177,244.2,244.07,9.66086177]
[1731902384637,13.34636177,244.2,244.09,9.66086177]
[1731902385257,13.34636177,244.2,244.06,10.243]
[1731902385441,13.34636177,244.2,244.09,4.0968]
[1731902385641,13.34636177,244.2,244.09,14.3389]
[1731902387462,6.6259,244.21,244.1,9.66086177]
[1731902387662,10.3113,244.21,244.1,9.66086177]
[1731902387860,10.3113,244.21,244.09,14.3389]
[1731902388062,10.3113,244.21,244.1,9.66086177]
[1731902388265,10.3113,244.21,244.1,6.18437351]
[1731902388762,10.3113,244.21,244.11,4.0965]
[1731902389159,3.6844,244.27,244.11,14.3377]
[1731902389340,6.18437351,244.21,244.11,14.3377]
[1731902389664,22.0142,244.2,244.11,10.2412]
[1731902389866,22.0142,244.2,244.11,14.3377]
[1731902391441,22.0142,244.2,244.11,20.52207351]
[1731902391861,22.0142,244.2,244.11,14.3377]
[1731902392048,25.6997,244.2,244.11,14.3377]
[1731902392246,25.6997,244.2,244.11,24.00054166]
[1731902392447,25.6997,244.2,244.11,14.3377]
[1731902393241,25.6997,244.2,244.09,9.66284166]
[1731902393555,22.0142,244.2,244.13,9.66284166]
[1731902393765,22.0142,244.2,244.06,15.23600092]
[1731902394081,22.0142,244.2,244.1,9.66284166]
[1731902394455,25.6997,244.2,244.1,9.66284166]
[1731902395269,9.66284166,244.18,244.07,4.0971]
[1731902395453,9.66284166,244.16,244.04,9.66284166]
[1731902396358,9.66284166,244.16,244.01,4.0981]
[1731902396359,9.66284166,244.14,244.05,10.2434]
[1731902396758,9.66284166,244.16,244.05,19.90624166]
[1731902396966,9.66284166,244.18,244.07,9.66284166]
[1731902397664,9.66284166,244.16,244.05,10.2434]
[1731902397861,9.66284166,244.18,244.07,9.66284166]
[1731902398169,13.34874166,244.18,244.08,14.3395]
[1731902399065,22.0142,244.2,244.11,9.66284166]
[1731902399451,3.6842,244.28,244.15,9.66284166]
[1731902399651,9.66284166,244.24,244.15,9.66284166]
[1731902399839,21.7357,244.29,244.16,14.3347]
[1731902400044,10.2079,244.34,244.17,9.66284166]
[1731902400247,9.66284166,244.27,244.17,9.66284166]
[1731902401366,3.6845,244.26,244.17,9.66284166]
[1731902401751,9.66284166,244.25,244.16,14.3347]
[1731902402071,9.66284166,244.25,244.16,10.2391]
[1731902402366,9.66284166,244.23,244.13,9.66284166]
[1731902402662,6.5246,244.2,244.09,9.66284166]
[1731902402866,6.5246,244.2,244.05,10.2437]
[1731902402867,9.66284166,244.17,244.05,10.2437]
[1731902403060,9.66284166,244.17,244.07,9.66284166]
[1731902403256,9.66284166,244.15,244.0,9.660861]
[1731902403456,9.66284166,244.15,244.04,9.66284166]
[1731902404677,3.6864,244.14,244.06,9.66284166]
[1731902405174,9.66284166,244.15,244.06,9.66284166]
[1731902405362,9.66284166,244.15,244.03,0.12549]
[1731902405560,9.2115,244.26,244.03,0.12549]
[1731902405758,9.66284166,244.21,244.11,9.66284166]
[1731902406279,9.66284166,244.21,244.03,0.12549]
[1731902406458,22.9575,244.25,244.03,0.12549]
[1731902406459,9.66284166,244.19,244.08,9.66284166]
[1731902406651,3.6858,244.18,244.08,9.66284166]
[1731902407163,3.6858,244.18,244.09,9.66284166]
[1731902407378,9.66284166,244.17,244.06,9.66284166]
[1731902407880,9.66284166,244.17,244.08,9.66284166]
[1731902408064,3.6858,244.18,244.08,9.66284166]
[1731902409153,9.66284166,244.17,244.08,9.66284166]
[1731902409478,9.66284166,244.17,244.06,9.66284166]
[1731902410057,3.6858,244.18,244.06,9.66284166]
[1731902410263,9.66284166,244.17,244.06,9.66284166]
[1731902410456,3.6861,244.16,244.06,13.76004166]
[1731902411578,3.6861,244.16,244.06,9.66284166]
[1731902412097,9.66284166,244.14,244.02,9.66284166]
[1731902412482,9.66284166,244.14,244.04,9.66284166]
[1731902412970,6.3161,244.13,244.04,9.66284166]
[1731902413761,10.0027,244.13,244.04,9.66284166]
[1731902414680,16.6414,244.12,244.04,9.66284166]
[1731902414984,16.6414,244.12,244.02,9.66284166]
[1731902415360,26.30424166,244.12,244.0,19.32370266]
[1731902415561,26.30424166,244.12,244.0,9.66284166]
[1731902415899,3.6868,244.11,244.0,9.66284166]
[1731902416273,3.6868,244.11,244.0,13.76104166]
[1731902416981,3.6868,244.11,244.02,9.66284166]
[1731902417697,9.66284166,244.1,244.0,9.66284166]
[1731902418992,9.66284166,244.08,243.98,9.66284166]
[1731902419405,3.6874,244.07,243.98,9.66284166]
[1731902420492,9.66284166,244.06,243.98,9.66284166]
[1731902421398,9.66284166,244.06,243.96,19.91014166]
[1731902421600,3.6877,244.05,243.96,19.91014166]
[1731902421806,9.66284166,244.04,243.96,19.91014166]
[1731902421983,3.6877,244.05,243.87,9.662841]
[1731902421984,9.66284166,244.0,243.87,9.662841]
[1731902422299,9.66284166,243.93,243.87,9.662841]
[1731902422491,9.66284166,243.93,243.84,14.3535]
[1731902422814,9.66284166,243.89,243.8,4.1016]
[1731902422982,9.66284166,243.89,243.72,9.66284166]
[1731902423301,9.66284166,243.89,243.8,9.66284166]
[1731902423694,13.35314166,243.89,243.7,3.91881263]
[1731902423895,13.35314166,243.89,243.79,9.66284166]
[1731902424212,9.66284166,243.87,243.79,9.66284166]
[1731902424993,9.66284166,243.87,243.79,4.1018]
[1731902425408,16.41084166,243.96,243.74,14.3595]
[1731902425409,9.66284166,243.83,243.74,14.3595]
[1731902425705,6.648,243.82,243.73,9.66284166]
[1731902425907,9.66284166,243.81,243.71,9.66284166]
[1731902426109,9.66284166,243.79,243.71,9.66284166]
[1731902426404,25.83574166,243.79,243.69,4.093]
[1731902426607,25.83574166,243.79,243.68,4.093]
[1731902426920,25.83574166,243.79,243.69,13.75584166]
[1731902427083,9.66284166,243.75,243.69,4.093]
[1731902427392,9.66284166,243.77,243.69,13.75584166]
[1731902427597,25.83574166,243.79,243.71,9.66284166]
[1731902427802,16.1729,243.79,243.73,9.66284166]
[1731902428489,16.1729,243.79,243.74,4.1027]
[1731902428916,25.83574166,243.79,243.72,10.2575]
[1731902429117,9.66284166,243.75,243.66,10.2598]
[1731902429790,9.66284166,243.68,243.6,10.2624]
[1731902430122,9.66284166,243.66,243.6,10.2624]
[1731902430286,6.648,243.73,243.6,10.2624]
[1731902430488,9.66284166,243.68,243.6,10.2624]
[1731902431123,9.66284166,243.66,243.6,10.2624]
[1731902431421,9.66284166,243.66,243.54,14.3711]
[1731902431422,16.1729,243.65,243.54,14.3711]
[1731902431609,16.1729,243.65,243.58,9.66284166]
[1731902431814,16.1729,243.65,243.6,9.66284166]
[1731902432233,16.1729,243.65,243.54,14.3711]
[1731902432528,16.1729,243.65,243.57,9.66284166]
[1731902432727,15.92681,243.65,243.59,9.66284166]
[1731902434029,15.92681,243.65,243.55,14.3707]
[1731902434338,15.92681,243.65,243.59,9.66284166]
[1731902434508,9.66284166,243.72,243.61,9.66284166]
[1731902434829,9.66284166,243.7,243.62,4.1047]
[1731902435032,9.66284166,243.7,243.62,14.3665]
[1731902435707,25.83574166,243.7,243.62,14.3665]
[1731902436020,9.66284166,243.68,243.62,10.2618]
[1731902436410,16.1729,243.7,243.62,10.2618]
[1731902436609,9.66284166,243.69,243.62,14.3665]
[1731902436805,9.66284166,243.69,243.62,10.2618]
[1731902437629,9.66284166,243.63,243.44,20.6384]
[1731902437828,6.635,243.6,243.51,9.66284166]
[1731902438211,6.635,243.6,243.53,9.66284166]
[1731902438413,9.66284166,243.64,243.55,9.66284166]
[1731902438611,6.635,243.65,243.5,10.2666]
[1731902438612,6.635,243.65,243.57,9.66284166]
[1731902438834,6.59395584,243.65,243.58,9.66284166]
[1731902439134,6.59395584,243.65,243.56,9.66284166]
[1731902439936,9.66284166,243.64,243.54,9.66284166]
[1731902440919,6.59395584,243.65,243.55,14.3707]
[1731902441129,6.59395584,243.65,243.56,9.66284166]
[1731902442119,9.66284166,243.64,243.55,14.3707]
[1731902442516,6.59395584,243.65,243.55,14.3707]
[1731902442714,32.47074166,243.7,243.6,9.66284166]
[1731902442918,32.47074166,243.7,243.55,35.0003]
[1731902442919,22.8079,243.7,243.62,9.66284166]
[1731902443439,32.47074166,243.7,243.61,14.3672]
[1731902443930,9.66284166,243.68,243.61,10.2623]
[1731902444518,9.66284166,243.66,243.61,10.2623]
[1731902444718,25.05506561,243.7,243.59,4.1051]
[1731902445017,13.35654166,243.66,243.56,9.66284166]
[1731902445426,9.66284166,243.64,243.54,9.66284166]
[1731902446240,9.66284166,243.64,243.55,4.1059]
[1731902446549,9.66284166,243.64,243.55,14.3707]
[1731902447963,9.66284166,243.62,243.55,14.3707]
[1731902448845,9.66284166,243.62,243.55,10.2648]
[1731902450337,0.09367462,243.68,243.55,10.2648]
[1731902450531,9.66284166,243.62,243.55,10.2648]
[1731902450836,9.66284166,243.63,243.55,10.2648]
[1731902451037,9.66284166,243.67,243.58,9.66284166]
[1731902451730,9.66284166,243.67,243.56,9.66284166]
[1731902452055,9.66284166,243.67,243.57,14.3694]
[1731902452356,3.6934,243.68,243.57,14.3694]
[1731902452532,9.66284166,243.66,243.57,14.3694]
[1731902453146,9.66284166,243.64,243.57,14.3694]
[1731902453330,9.66284166,243.64,243.55,9.66284166]
[1731902453963,9.66284166,243.66,243.57,9.66284166]
[1731902454453,9.66284166,243.68,243.57,9.66284166]
[1731902454756,9.66284166,243.66,243.57,9.66284166]
[1731902455331,21.2356,243.78,243.65,9.66284166]
[1731902455558,21.2356,243.78,243.6,9.66284166]
[1731902455559,21.2356,243.78,243.72,9.66284166]
[1731902455860,9.66284166,243.82,243.72,9.66284166]
[1731902456148,30.89844166,243.84,243.74,9.66284166]
[1731902457560,30.89844166,243.84,243.75,14.3589]
[1731902458251,8.3201024,243.93,243.82,9.66284166]
[1731902458252,21.2356,243.93,243.82,9.66284166]
[1731902458554,21.2356,243.93,243.84,9.66284166]
[1731902459353,9.66284166,243.92,243.82,9.66284166]
[1731902459739,21.2356,243.93,243.84,9.66284166]
[1731902460551,3.689,243.97,243.85,4.1008]
[1731902460741,9.66284166,243.95,243.85,4.1008]
[1731902461358,3.689,243.97,243.85,4.1008]
[1731902461657,9.66284166,243.89,243.8,9.66284166]
[1731902462366,6.1603,243.92,243.82,9.66284166]
[1731902462745,9.66284166,243.91,243.82,9.66284166]
[1731902462943,9.66284166,243.91,243.79,14.3565]
[1731902462944,9.66284166,243.91,243.8,9.66284166]
[1731902463145,18.7648,243.93,243.8,9.66284166]
[1731902463442,9.66284166,243.87,243.79,10.2547]
[1731902463751,9.66284166,243.85,243.75,9.66284166]
[1731902463949,9.66284166,243.83,243.73,9.66284166]
[1731902464472,3.78347462,243.91,243.69,9.66284166]
[1731902464473,9.66284166,243.79,243.69,9.66284166]
[1731902464762,9.66284166,243.77,243.68,34.8816]
[1731902464955,9.66284166,243.75,243.68,10.2593]
[1731902465343,0.21916462,243.8,243.68,10.2593]
[1731902465653,9.66284166,243.72,243.64,9.66284166]
[1731902466175,9.66284166,243.72,243.62,19.92434166]
[1731902466462,15.52337722,243.72,243.62,25.78487722]
[1731902466757,15.52337722,243.66,243.57,15.52337722]
[1731902467856,15.52337722,243.66,243.57,19.62877722]
[1731902468237,15.52337722,243.64,243.57,4.1054]
[1731902468442,3.6936,243.67,243.52,15.52337722]
[1731902468443,15.52337722,243.61,243.52,15.52337722]
[1731902468869,15.52337722,243.63,243.54,15.52337722]
[1731902469351,15.52337722,243.67,243.58,15.52337722]
[1731902469760,15.52337722,243.67,243.59,4.1052]
[1731902469975,15.52337722,243.67,243.58,19.62857722]
[1731902470849,15.52337722,243.65,243.56,25.78737722]
[1731902471060,15.52337722,243.63,243.56,10.264]
[1731902471470,15.52337722,243.63,243.56,14.3697]
[1731902471769,15.52337722,243.63,243.54,19.62927722]
[1731902471971,23.776884,243.6,243.52,19.62967722]
[1731902472274,23.776884,243.6,243.52,4.1063]
[1731902472575,15.52337722,243.61,243.52,4.1063]
[1731902472576,15.52337722,243.61,243.52,29.89567722]
[1731902473573,3.6942,243.63,243.5,15.52337722]
[1731902473574,23.776884,243.58,243.5,15.52337722]
[1731902474477,23.776884,243.58,243.5,19.62997722]
[1731902475265,23.776884,243.58,243.5,4.1066]
[1731902475777,15.52337722,243.57,243.48,19.63037722]
[1731902476147,15.52337722,243.53,243.44,15.52337722]
[1731902476856,6.5634,243.56,243.4,4.1084]
[1731902476857,15.52337722,243.51,243.42,15.52337722]
[1731902477173,6.5634,243.56,243.42,15.52337722]
[1731902477377,15.52337722,243.53,243.44,15.52337722]
[1731902477678,23.776884,243.46,243.37,16.422078]
[1731902477867,15.52337722,243.43,243.34,15.52337722]
[1731902478174,15.52337722,243.47,243.38,15.52337722]
[1731902478978,23.776884,243.46,243.38,15.52337722]
[1731902479270,23.776884,243.46,243.37,4.1088]
[1731902479695,15.52337722,243.44,243.37,4.1088]
[1731902479974,15.52337722,243.42,243.35,10.2732]
[1731902481479,15.52337722,243.46,243.36,15.52337722]
[1731902481774,10.2595,243.49,243.39,15.52337722]
[1731902482160,15.52337722,243.48,243.37,15.52337722]
[1731902482976,15.52337722,243.46,243.37,15.52337722]
[1731902483502,19.22007722,243.46,243.37,15.52337722]
[1731902483791,19.22007722,243.46,243.37,19.63217722]
[1731902483987,23.776884,243.45,243.37,15.52337722]
[1731902484177,19.22007722,243.46,243.35,29.90577722]
[1731902484492,23.776884,243.43,243.35,29.90577722]
[1731902484874,23.776884,243.43,243.35,14.3824]
[1731902485198,15.52337722,243.44,243.35,29.90577722]
[1731902485672,19.22037722,243.44,243.35,29.90577722]
[1731902485867,15.52337722,243.42,243.35,10.2732]
[1731902486281,23.776884,243.41,243.35,10.2732]
[1731902486890,15.52337722,243.4,243.33,4.1095]
[1731902487282,15.52337722,243.4,243.31,19.63327722]
[1731902487691,15.52337722,243.4,243.31,29.90817722]
[1731902488287,15.52337722,243.4,243.31,25.79827722]
[1731902488489,15.52337722,243.38,243.29,15.52337722]
[1731902488678,15.52337722,243.38,243.28,4.1104]
[1731902488997,15.52337722,243.34,243.25,25.80057722]
[1731902489297,15.52337722,243.34,243.25,29.91147722]
[1731902489680,23.776884,243.33,243.25,29.91147722]
[1731902490195,15.52337722,243.34,243.25,29.91147722]
[1731902490601,15.52337722,243.38,243.29,15.52337722]
[1731902490907,15.52337722,243.44,243.35,15.52337722]
[1731902491405,15.52337722,243.44,243.36,4.1091]
[1731902491609,15.52337722,243.49,243.39,15.52337722]
[1731902491789,15.52337722,243.49,243.41,15.52337722]
[1731902491991,15.52337722,243.49,243.39,15.52337722]
[1731902492189,15.52337722,243.47,243.37,15.52337722]
[1731902493100,15.52337722,243.45,243.25,20.5549]
[1731902493297,15.52337722,243.45,243.31,15.52337722]
[1731902493298,0.09367462,243.39,243.31,15.52337722]
[1731902493480,23.776884,243.38,243.29,15.52337722]
[1731902494396,23.776884,243.38,243.31,15.52337722]
[1731902494979,15.52337722,243.41,243.31,15.52337722]
[1731902495301,3.6962,243.49,243.37,15.52337722]
[1731902495480,15.52337722,243.48,243.37,15.52337722]